[Event "*** Monthly 3|2 Blitz Masters"]
[Site "Chess.com"]
[Date "2014.11.25"]
[Round "5"]
[White "DanielRensch"]
[Black "LePlusMortel"]
[Result "1/2-1/2"]
[WhiteElo "2360"]
[BlackElo "2370"]
[TimeControl "180+2"]
[EndTime "12:00:28 PST"]
[Termination "Game drawn - insufficient material"]

1. d4 {[%clk 0:03:00]} 1... Nf6 {[%clk 0:02:54.8]} 2. Nc3 {[%clk 0:03:01.4]}
2... d6 {[%clk 0:02:51.9]} 3. Bg5 {[%clk 0:03:02]} 3... c6 {[%clk 0:02:50]} 4.
e4 {[%clk 0:03:02.9]} 4... Qb6 {[%clk 0:02:50.8]} 5. Qd2 {[%clk 0:03:02.9]} 5...
Nbd7 {[%clk 0:02:50]} 6. Nf3 {[%clk 0:03:02.3]} 6... e5 {[%clk 0:02:44.8]} 7.
dxe5 {[%clk 0:03:00.9]} 7... dxe5 {[%clk 0:02:44.3]} 8. Bxf6 {[%clk 0:02:36.8]}
8... Nxf6 {[%clk 0:02:44.7]} 9. Nxe5 {[%clk 0:02:37.9]} 9... Qxb2 {[%clk
0:01:56.9]} 10. Rd1 {[%clk 0:02:23.8]} 10... Be7 {[%clk 0:01:53.8]} 11. Nc4
{[%clk 0:02:22.6]} 11... Qb4 {[%clk 0:01:54]} 12. a3 {[%clk 0:02:23.2]} 12...
Qc5 {[%clk 0:01:48.4]} 13. e5 {[%clk 0:02:22.6]} 13... O-O {[%clk 0:01:11.5]}
14. exf6 {[%clk 0:02:19.8]} 14... Bxf6 {[%clk 0:01:13.4]} 15. Be2 {[%clk
0:02:04.8]} 15... Re8 {[%clk 0:01:11.7]} 16. O-O {[%clk 0:01:36.9]} 16... b5
{[%clk 0:01:09.2]} 17. Nd6 {[%clk 0:01:06.7]} 17... Bxc3 {[%clk 0:00:57.1]} 18.
Qf4 {[%clk 0:01:07.5]} 18... Rf8 {[%clk 0:00:51.8]} 19. Ne4 {[%clk 0:00:49.8]}
19... Qe5 {[%clk 0:00:52.3]} 20. Qh4 {[%clk 0:00:43.7]} 20... Bf5 {[%clk
0:00:43.6]} 21. Bd3 {[%clk 0:00:36.9]} 21... Rae8 {[%clk 0:00:15.2]} 22. Nxc3
{[%clk 0:00:35.8]} 22... Qxc3 {[%clk 0:00:09.8]} 23. Bxf5 {[%clk 0:00:36.3]}
23... g6 {[%clk 0:00:11.4]} 24. Bd3 {[%clk 0:00:36.8]} 24... Qxa3 {[%clk
0:00:11.7]} 25. Ra1 {[%clk 0:00:30.2]} 25... Qc5 {[%clk 0:00:12.3]} 26. Rfe1
{[%clk 0:00:28.6]} 26... Rxe1+ {[%clk 0:00:12]} 27. Rxe1 {[%clk 0:00:28.8]}
27... a5 {[%clk 0:00:13.6]} 28. Qe7 {[%clk 0:00:25.4]} 28... Qxe7 {[%clk
0:00:07.1]} 29. Rxe7 {[%clk 0:00:27.3]} 29... Ra8 {[%clk 0:00:08.1]} 30. Be4
{[%clk 0:00:25.3]} 30... Ra6 {[%clk 0:00:08.3]} 31. Rc7 {[%clk 0:00:23.5]} 31...
a4 {[%clk 0:00:08.9]} 32. Rxc6 {[%clk 0:00:21.3]} 32... Ra7 {[%clk 0:00:10.4]}
33. Bd5 {[%clk 0:00:14]} 33... Rd7 {[%clk 0:00:07.1]} 34. Rc5 {[%clk 0:00:13.7]}
34... b4 {[%clk 0:00:05.7]} 35. Kf1 {[%clk 0:00:13]} 35... Ra7 {[%clk
0:00:03.1]} 36. Rb5 {[%clk 0:00:12.4]} 36... b3 {[%clk 0:00:04.5]} 37. Bxb3
{[%clk 0:00:08.4]} 37... axb3 {[%clk 0:00:05.1]} 38. Rxb3 {[%clk 0:00:08.3]}
38... Ra2 {[%clk 0:00:06.5]} 39. Rc3 {[%clk 0:00:08.8]} 39... Kg7 {[%clk
0:00:08]} 40. Ke2 {[%clk 0:00:10.1]} 40... h5 {[%clk 0:00:09.3]} 41. Kf3 {[%clk
0:00:11.2]} 41... Ra1 {[%clk 0:00:10.4]} 42. Rc6 {[%clk 0:00:11.7]} 42... Rc1
{[%clk 0:00:11.7]} 43. c4 {[%clk 0:00:12.8]} 43... Rc3+ {[%clk 0:00:12.4]} 44.
Kf4 {[%clk 0:00:13.3]} 44... Rc2 {[%clk 0:00:14.3]} 45. Ke3 {[%clk 0:00:14.5]}
45... h4 {[%clk 0:00:14.2]} 46. g3 {[%clk 0:00:14.9]} 46... h3 {[%clk
0:00:15.1]} 47. c5 {[%clk 0:00:15.9]} 47... Rc3+ {[%clk 0:00:15.5]} 48. Kf4
{[%clk 0:00:16.5]} 48... Rc2 {[%clk 0:00:16.6]} 49. Kf3 {[%clk 0:00:17.6]} 49...
g5 {[%clk 0:00:15.8]} 50. Kg4 {[%clk 0:00:09.7]} 50... Rxf2 {[%clk 0:00:16.6]}
51. Kxh3 {[%clk 0:00:11]} 51... f6 {[%clk 0:00:17.4]} 52. Rd6 {[%clk 0:00:09.8]}
52... Rc2 {[%clk 0:00:17.6]} 53. c6 {[%clk 0:00:11.2]} 53... Kg6 {[%clk
0:00:18.8]} 54. g4 {[%clk 0:00:12.6]} 54... Rc3+ {[%clk 0:00:19.1]} 55. Kg2
{[%clk 0:00:14.1]} 55... Rc2+ {[%clk 0:00:20.3]} 56. Kg3 {[%clk 0:00:15.6]}
56... Rc3+ {[%clk 0:00:21.6]} 57. Kf2 {[%clk 0:00:17.1]} 57... Rc2+ {[%clk
0:00:22.2]} 58. Ke3 {[%clk 0:00:18.5]} 58... Rxh2 {[%clk 0:00:21.3]} 59. c7
{[%clk 0:00:19.8]} 59... Rc2 {[%clk 0:00:22]} 60. Rd7 {[%clk 0:00:21.2]} 60...
f5 {[%clk 0:00:21.6]} 61. gxf5+ {[%clk 0:00:20]} 61... Kxf5 {[%clk 0:00:23.5]}
62. Kd3 {[%clk 0:00:21.1]} 62... Rc6 {[%clk 0:00:23.9]} 63. Kd4 {[%clk
0:00:21.6]} 63... Kf4 {[%clk 0:00:19.8]} 64. Rf7+ {[%clk 0:00:19.4]} 64... Kg3
{[%clk 0:00:20.1]} 65. Kd5 {[%clk 0:00:20.7]} 65... Rc1 {[%clk 0:00:20.4]} 66.
Kd6 {[%clk 0:00:20.9]} 66... g4 {[%clk 0:00:21.7]} 67. Rf5 {[%clk 0:00:22]}
67... Rxc7 {[%clk 0:00:19.9]} 68. Kxc7 {[%clk 0:00:23.9]} 68... Kh2 {[%clk
0:00:19.6]} 69. Rh5+ {[%clk 0:00:24.2]} 69... Kg2 {[%clk 0:00:20.4]} 70. Kd6
{[%clk 0:00:26.1]} 70... g3 {[%clk 0:00:20.8]} 71. Ke5 {[%clk 0:00:26.7]} 71...
Kf3 {[%clk 0:00:22.4]} 72. Rf5+ {[%clk 0:00:27.5]} 72... Ke3 {[%clk 0:00:23.9]}
73. Rg5 {[%clk 0:00:26.7]} 73... Kf3 {[%clk 0:00:25.2]} 74. Kd4 {[%clk
0:00:23.8]} 74... g2 {[%clk 0:00:26.2]} 75. Kd3 {[%clk 0:00:20.4]} 75... Kf2
{[%clk 0:00:27.6]} 76. Rf5+ {[%clk 0:00:19.8]} 76... Ke1 {[%clk 0:00:29]} 77.
Re5+ {[%clk 0:00:15.4]} 77... Kf2 {[%clk 0:00:29.3]} 78. Rf5+ {[%clk 0:00:09.5]}
78... Ke1 {[%clk 0:00:30]} 79. Rg5 {[%clk 0:00:06.4]} 79... Kf2 {[%clk 0:00:31]}
80. Kd2 {[%clk 0:00:05.6]} 80... g1=Q {[%clk 0:00:30.8]} 81. Rf5+ {[%clk
0:00:04]} 81... Kg2 {[%clk 0:00:32]} 82. Rg5+ {[%clk 0:00:05.2]} 82... Kh1
{[%clk 0:00:32.8]} 83. Rxg1+ {[%clk 0:00:05.9]} 83... Kxg1 {[%clk 0:00:34.7]}
1/2-1/2

[Event "*** Monthly 3|2 Blitz Masters"]
[Site "Chess.com"]
[Date "2014.11.25"]
[Round "5"]
[White "IMRosen"]
[Black "josiwales"]
[Result "1-0"]
[WhiteElo "1988"]
[BlackElo "1815"]
[TimeControl "180+2"]
[EndTime "12:00:56 PST"]
[Termination "IMRosen won by resignation"]

1. c4 {[%clk 0:02:58.8]} 1... Nf6 {[%clk 0:02:58.8]} 2. Nc3 {[%clk 0:02:59.9]}
2... g6 {[%clk 0:03:00]} 3. e4 {[%clk 0:03:01.3]} 3... d6 {[%clk 0:02:59.2]} 4.
d4 {[%clk 0:03:01.7]} 4... Bg7 {[%clk 0:03:00.8]} 5. Be2 {[%clk 0:03:03.2]} 5...
O-O {[%clk 0:03:02.1]} 6. Bg5 {[%clk 0:03:04.8]} 6... Nbd7 {[%clk 0:03:03.4]} 7.
Qd2 {[%clk 0:03:04.2]} 7... e5 {[%clk 0:03:04.7]} 8. d5 {[%clk 0:03:04.6]} 8...
Nc5 {[%clk 0:03:02.1]} 9. f3 {[%clk 0:03:06.2]} 9... a5 {[%clk 0:03:02.5]} 10.
b3 {[%clk 0:03:06.9]} 10... b6 {[%clk 0:02:55.8]} 11. h4 {[%clk 0:03:07.8]}
11... h5 {[%clk 0:02:55.3]} 12. g4 {[%clk 0:03:02.1]} 12... hxg4 {[%clk
0:02:43.6]} 13. h5 {[%clk 0:03:02]} 13... Qe8 {[%clk 0:02:35.5]} 14. Bxf6 {[%clk
0:02:49.1]} 14... Bxf6 {[%clk 0:02:36.1]} 15. fxg4 {[%clk 0:02:50.8]} 15... Qe7
{[%clk 0:02:27.8]} 16. Nh3 {[%clk 0:02:51.2]} 16... Bh4+ {[%clk 0:02:25.1]} 17.
Kd1 {[%clk 0:02:52.3]} 17... g5 {[%clk 0:02:21]} 18. Kc2 {[%clk 0:02:47.1]}
18... f6 {[%clk 0:02:19.4]} 19. Raf1 {[%clk 0:02:46.6]} 19... Qh7 {[%clk
0:02:19.7]} 20. Bd3 {[%clk 0:02:44.9]} 20... Bxg4 {[%clk 0:02:19.7]} 21. Rfg1
{[%clk 0:02:23.5]} 21... Bf3 {[%clk 0:02:10.3]} 22. Re1 {[%clk 0:01:05.1]} 22...
Bxh1 {[%clk 0:02:08.7]} 23. Rxh1 {[%clk 0:01:05.6]} 23... Qxh5 {[%clk
0:02:07.5]} 24. Be2 {[%clk 0:00:53.5]} 24... Qg6 {[%clk 0:02:05.4]} 25. Qe3
{[%clk 0:00:52.1]} 25... Kg7 {[%clk 0:01:56.6]} 26. Bg4 {[%clk 0:00:46.3]} 26...
Rh8 {[%clk 0:01:52.5]} 27. Bf5 {[%clk 0:00:44.9]} 27... Qf7 {[%clk 0:01:51.1]}
28. Rg1 {[%clk 0:00:41.7]} 28... Kf8 {[%clk 0:01:46.2]} 29. Nb5 {[%clk
0:00:39.7]} 29... Na6 {[%clk 0:01:39]} 30. a3 {[%clk 0:00:39.4]} 30... Qe7
{[%clk 0:01:26.2]} 31. Qf3 {[%clk 0:00:36.3]} 31... Qf7 {[%clk 0:01:05.9]} 32.
Be6 {[%clk 0:00:36.5]} 32... Qg6 {[%clk 0:01:03.1]} 33. Bf5 {[%clk 0:00:37.6]}
33... Qg7 {[%clk 0:00:59.6]} 34. Bg4 {[%clk 0:00:38.6]} 34... Qe7 {[%clk
0:00:47.6]} 35. Qf5 {[%clk 0:00:38]} 35... Rh6 {[%clk 0:00:45.4]} 36. Rf1 {[%clk
0:00:38]} 36... Kg7 {[%clk 0:00:41.2]} 37. Qf3 {[%clk 0:00:36.9]} 37... Rf8
{[%clk 0:00:39]} 38. Bf5 {[%clk 0:00:36.8]} 38... Kg8 {[%clk 0:00:34.7]} 39. Na7
{[%clk 0:00:37.2]} 39... Nb8 {[%clk 0:00:32.5]} 40. Nb5 {[%clk 0:00:38]} 40...
Qg7 {[%clk 0:00:27.9]} 41. Rg1 {[%clk 0:00:36.2]} 41... Kh8 {[%clk 0:00:28.1]}
42. Bg4 {[%clk 0:00:30.2]} 42... Qe7 {[%clk 0:00:17.4]} 43. Be6 {[%clk
0:00:28.9]} 43... Rh7 {[%clk 0:00:16.6]} 44. Bf5 {[%clk 0:00:29.3]} 44... Rg7
{[%clk 0:00:17.8]} 45. Qh5+ {[%clk 0:00:29.5]} 45... Kg8 {[%clk 0:00:17.2]} 46.
Be6+ {[%clk 0:00:30.8]} 46... Rff7 {[%clk 0:00:17.1]} 47. Rf1 {[%clk 0:00:29.2]}
47... Kf8 {[%clk 0:00:12.5]} 48. Qh8+ {[%clk 0:00:28.2]} 48... Rg8 {[%clk
0:00:13.6]} 49. Qh6+ {[%clk 0:00:29.6]} 49... Ke8 {[%clk 0:00:14.1]} 50. Bxf7+
{[%clk 0:00:30.8]} 50... Qxf7 {[%clk 0:00:15.3]} 51. Rxf6 {[%clk 0:00:31]} 51...
Qg7 {[%clk 0:00:14.4]} 52. Qh5+ {[%clk 0:00:22.1]} 52... Kd8 {[%clk 0:00:11.8]}
53. Rf7 {[%clk 0:00:17.4]} 53... Qg6 {[%clk 0:00:13]} 54. Rf8+ {[%clk
0:00:15.9]} 54... Ke7 {[%clk 0:00:12]} 55. Qxg6 {[%clk 0:00:10.6]} 55... Rxg6
{[%clk 0:00:13.3]} 56. Rxb8 {[%clk 0:00:12.3]} 56... g4 {[%clk 0:00:14.7]} 57.
Ng1 {[%clk 0:00:14]} 57... Rf6 {[%clk 0:00:15.3]} 58. Rg8 {[%clk 0:00:11.9]}
58... Rf2+ {[%clk 0:00:15.4]} 59. Kd3 {[%clk 0:00:12.4]} 59... Rg2 {[%clk
0:00:16.6]} 60. Ne2 {[%clk 0:00:12.4]} 60... g3 {[%clk 0:00:15.7]} 61. Ke3
{[%clk 0:00:11.3]} 61... Kf6 {[%clk 0:00:15.4]} 62. Nbc3 {[%clk 0:00:11.3]}
62... Bg5+ {[%clk 0:00:16.2]} 63. Kf3 {[%clk 0:00:11.8]} 63... Rf2+ {[%clk
0:00:13.2]} 64. Kxg3 {[%clk 0:00:12.8]} 64... Rf1 {[%clk 0:00:14.7]} 65. Rc8
{[%clk 0:00:13]} 65... Rb1 {[%clk 0:00:15.4]} 66. Rxc7 {[%clk 0:00:11.9]} 66...
Rxb3 {[%clk 0:00:16.1]} 67. Kf2 {[%clk 0:00:10]} 67... Bd2 {[%clk 0:00:15.8]}
68. Nb5 {[%clk 0:00:11.1]} 68... Be3+ {[%clk 0:00:17]} 69. Kg2 {[%clk
0:00:10.4]} 69... Bc5 {[%clk 0:00:18.4]} 70. Rc6 {[%clk 0:00:10.7]} 70... Rb2
{[%clk 0:00:18.1]} 71. Kf3 {[%clk 0:00:11.1]} 71... Rb3+ {[%clk 0:00:18.3]} 72.
Kg2 {[%clk 0:00:10.5]} 72... Rb2 {[%clk 0:00:19.6]} 73. Kf1 {[%clk 0:00:11.7]}
73... Rb1+ {[%clk 0:00:20.1]} 74. Kg2 {[%clk 0:00:12.8]} 74... Rb2 {[%clk
0:00:21.3]} 75. Nc3 {[%clk 0:00:14.4]} 75... Bxa3 {[%clk 0:00:19.1]} 76. Kf3
{[%clk 0:00:12.3]} 76... Bb4 {[%clk 0:00:19.8]} 77. Ke3 {[%clk 0:00:13]} 77...
Rb3 {[%clk 0:00:19.6]} 78. Kd3 {[%clk 0:00:14]} 78... a4 {[%clk 0:00:20]} 79.
Kc2 {[%clk 0:00:14.8]} 79... Bxc3 {[%clk 0:00:17.9]} 80. Nxc3 {[%clk 0:00:15.2]}
80... Kg5 {[%clk 0:00:18.6]} 81. Rxd6 {[%clk 0:00:16.1]} 81... Kf4 {[%clk
0:00:18.3]} 82. Rh6 {[%clk 0:00:16.3]} 82... Ke3 {[%clk 0:00:18.4]} 83. Rh3+
{[%clk 0:00:13.8]} 83... Kd4 {[%clk 0:00:19.1]} 84. Rd3+ {[%clk 0:00:15.3]}
84... Kxc4 {[%clk 0:00:19.7]} 85. d6 {[%clk 0:00:16.1]} 85... a3 {[%clk
0:00:20]} 86. d7 {[%clk 0:00:16]} 86... Rb2+ {[%clk 0:00:21.1]} 87. Kc1 {[%clk
0:00:15.9]} 87... a2 {[%clk 0:00:20.1]} 88. Kxb2 {[%clk 0:00:15.9]} 1-0

[Event "*** Monthly 3|2 Blitz Masters"]
[Site "Chess.com"]
[Date "2014.11.25"]
[Round "5"]
[White "Nouki"]
[Black "GMHess"]
[Result "1/2-1/2"]
[WhiteElo "2654"]
[BlackElo "2466"]
[TimeControl "180+2"]
[EndTime "12:01:17 PST"]
[Termination "Game drawn by agreement"]

1. d4 {[%clk 0:02:59]} 1... Nf6 {[%clk 0:02:57]} 2. c4 {[%clk 0:02:59.7]} 2...
e6 {[%clk 0:02:58.1]} 3. Nf3 {[%clk 0:03:01.1]} 3... d5 {[%clk 0:02:59.1]} 4.
Nc3 {[%clk 0:03:01.2]} 4... Be7 {[%clk 0:02:59.1]} 5. Bf4 {[%clk 0:03:02.6]}
5... O-O {[%clk 0:02:56.5]} 6. e3 {[%clk 0:03:04]} 6... c6 {[%clk 0:02:55.1]} 7.
c5 {[%clk 0:03:00.9]} 7... Nbd7 {[%clk 0:02:50.2]} 8. h3 {[%clk 0:02:57.8]} 8...
Ne4 {[%clk 0:02:34.4]} 9. Bd3 {[%clk 0:02:03.6]} 9... f5 {[%clk 0:02:33]} 10. g4
{[%clk 0:01:36.1]} 10... b6 {[%clk 0:02:31.8]} 11. gxf5 {[%clk 0:01:36.1]} 11...
exf5 {[%clk 0:02:30.8]} 12. cxb6 {[%clk 0:01:37.5]} 12... axb6 {[%clk
0:02:17.5]} 13. Rg1 {[%clk 0:01:36.9]} 13... Bf6 {[%clk 0:01:52.2]} 14. Qb3
{[%clk 0:01:31.8]} 14... Kh8 {[%clk 0:01:42.2]} 15. Ke2 {[%clk 0:01:25.2]} 15...
Bb7 {[%clk 0:01:17]} 16. Rad1 {[%clk 0:01:08.5]} 16... Ra5 {[%clk 0:00:55.1]}
17. h4 {[%clk 0:01:04.2]} 17... c5 {[%clk 0:00:56]} 18. Bxe4 {[%clk 0:00:59.6]}
18... fxe4 {[%clk 0:00:51.4]} 19. Ng5 {[%clk 0:01:00.9]} 19... cxd4 {[%clk
0:00:43.1]} 20. exd4 {[%clk 0:00:57.5]} 20... Ba6+ {[%clk 0:00:43.8]} 21. Ke1
{[%clk 0:00:57.8]} 21... Bc4 {[%clk 0:00:42.1]} 22. Qb4 {[%clk 0:00:49.8]} 22...
Be7 {[%clk 0:00:36.3]} 23. Bd6 {[%clk 0:00:49.7]} 23... Bxd6 {[%clk 0:00:24.5]}
24. Qxd6 {[%clk 0:00:50.6]} 24... Qf6 {[%clk 0:00:24]} 25. Qxf6 {[%clk
0:00:42.1]} 25... gxf6 {[%clk 0:00:19.5]} 26. Ne6 {[%clk 0:00:41.7]} 26... Re8
{[%clk 0:00:20.1]} 27. Nf4 {[%clk 0:00:24.8]} 27... Bxa2 {[%clk 0:00:19.7]} 28.
Ra1 {[%clk 0:00:24.8]} 28... Rea8 {[%clk 0:00:11.8]} 29. Kd2 {[%clk 0:00:21.7]}
29... Bc4 {[%clk 0:00:11.6]} 30. Rxa5 {[%clk 0:00:23.1]} 30... Rxa5 {[%clk
0:00:13.5]} 31. b4 {[%clk 0:00:20.1]} 31... Ra3 {[%clk 0:00:14.6]} 32. Nfxd5
{[%clk 0:00:21.1]} 32... Bxd5 {[%clk 0:00:15.8]} 33. Nxd5 {[%clk 0:00:20.9]}
33... Rd3+ {[%clk 0:00:17.5]} 34. Ke2 {[%clk 0:00:18.1]} 34... Rxd4 {[%clk
0:00:12.6]} 35. Nf4 {[%clk 0:00:13.2]} 35... Ne5 {[%clk 0:00:10.7]} 36. Nh5
{[%clk 0:00:11.2]} 36... Nd7 {[%clk 0:00:08.8]} 37. Rc1 {[%clk 0:00:10.8]} 37...
Kg8 {[%clk 0:00:08.9]} 38. Rc7 {[%clk 0:00:08.6]} 38... Kf7 {[%clk 0:00:09.1]}
39. Ke3 {[%clk 0:00:10.1]} 39... Rd5 {[%clk 0:00:08.3]} 40. Nf4 {[%clk 0:00:11]}
40... Rd6 {[%clk 0:00:09.4]} 41. Kxe4 {[%clk 0:00:12.3]} 41... Ke7 {[%clk
0:00:10]} 42. Nd5+ {[%clk 0:00:13.3]} 42... Ke6 {[%clk 0:00:08.8]} 43. Nf4+
{[%clk 0:00:14.9]} 43... Ke7 {[%clk 0:00:10.2]} 44. h5 {[%clk 0:00:16.5]} 44...
Rd1 {[%clk 0:00:09.8]} 45. Rc6 {[%clk 0:00:17]} 45... Rd6 {[%clk 0:00:09.8]} 46.
Nd5+ {[%clk 0:00:16.7]} 46... Ke6 {[%clk 0:00:10.3]} 47. Nf4+ {[%clk 0:00:16.4]}
47... Ke7 {[%clk 0:00:11.5]} 48. Rc7 {[%clk 0:00:17.7]} 48... Rd1 {[%clk
0:00:11.8]} 49. Kf5 {[%clk 0:00:16.3]} 49... Kd6 {[%clk 0:00:11]} 50. Ra7 {[%clk
0:00:14.3]} 50... Rd2 {[%clk 0:00:10.7]} 51. f3 {[%clk 0:00:15.1]} 51... Rb2
{[%clk 0:00:11.4]} 52. Nd3 {[%clk 0:00:06.9]} 52... Rb3 {[%clk 0:00:11.3]} 53.
Ke4 {[%clk 0:00:08.5]} 53... Rb1 {[%clk 0:00:09.9]} 54. Kd4 {[%clk 0:00:09.8]}
54... Rh1 {[%clk 0:00:10.4]} 55. Nf2 {[%clk 0:00:08.3]} 55... Rxh5 {[%clk
0:00:10.1]} 56. Ne4+ {[%clk 0:00:09.9]} 56... Ke6 {[%clk 0:00:07.4]} 57. Rxd7
{[%clk 0:00:11.5]} 57... f5 {[%clk 0:00:06.2]} 58. Rd6+ {[%clk 0:00:12.7]} 58...
Ke7 {[%clk 0:00:07]} 59. Rxb6 {[%clk 0:00:14.1]} 59... fxe4 {[%clk 0:00:07.9]}
60. fxe4 {[%clk 0:00:16]} 60... Rh1 {[%clk 0:00:09.5]} 61. Ke5 {[%clk
0:00:17.1]} 61... Rh5+ {[%clk 0:00:09.6]} 62. Kd4 {[%clk 0:00:17.5]} 62... Rh1
{[%clk 0:00:10.2]} 63. b5 {[%clk 0:00:19.2]} 63... h5 {[%clk 0:00:11]} 64. Rh6
{[%clk 0:00:19.7]} 64... h4 {[%clk 0:00:10.9]} 65. b6 {[%clk 0:00:20.4]} 65...
Kd7 {[%clk 0:00:12.3]} 66. Ke5 {[%clk 0:00:19.4]} 66... h3 {[%clk 0:00:13.4]}
67. b7 {[%clk 0:00:20.7]} 67... Kc7 {[%clk 0:00:14.5]} 68. Rh7+ {[%clk
0:00:22.3]} 68... Kb8 {[%clk 0:00:16.1]} 69. Ke6 {[%clk 0:00:23.6]} 69... h2
{[%clk 0:00:17.2]} 70. e5 {[%clk 0:00:25.2]} 70... Ka7 {[%clk 0:00:18.7]} 71.
Kd7 {[%clk 0:00:17.6]} 71... Kxb7 {[%clk 0:00:14.6]} 72. e6 {[%clk 0:00:19.2]}
72... Kb6 {[%clk 0:00:13.4]} 73. e7 {[%clk 0:00:16.4]} 73... Rd1+ {[%clk
0:00:13.7]} 74. Kc8 {[%clk 0:00:17.9]} 74... Re1 {[%clk 0:00:11.4]} 75. Rh6+
{[%clk 0:00:16.7]} 75... Kc5 {[%clk 0:00:06.2]} 76. Kd7 {[%clk 0:00:18]} 76...
Rd1+ {[%clk 0:00:07.6]} 77. Kc7 {[%clk 0:00:18.4]} 77... Re1 {[%clk 0:00:08.8]}
78. Rh5+ {[%clk 0:00:15.7]} 78... Kb4 {[%clk 0:00:08.6]} 79. Kd7 {[%clk
0:00:17]} 79... Rd1+ {[%clk 0:00:09.7]} 80. Kc6 {[%clk 0:00:18.6]} 80... Re1
{[%clk 0:00:10]} 81. Rh4+ {[%clk 0:00:20.2]} 81... Ka5 {[%clk 0:00:09.4]} 82.
Kd7 {[%clk 0:00:21.3]} 82... Rd1+ {[%clk 0:00:10]} 83. Kc8 {[%clk 0:00:22.8]}
83... Re1 {[%clk 0:00:10.5]} 84. Kd7 {[%clk 0:00:22.2]} 84... Rd1+ {[%clk
0:00:11.7]} 1/2-1/2

[Event "*** Monthly 3|2 Blitz Masters"]
[Site "Chess.com"]
[Date "2014.11.25"]
[Round "6"]
[White "Sebastian"]
[Black "hitaman"]
[Result "1-0"]
[WhiteElo "2533"]
[BlackElo "2401"]
[TimeControl "180+2"]
[EndTime "12:05:30 PST"]
[Termination "Sebastian won by resignation"]

1. e4 {[%clk 0:03:00]} 1... c5 {[%clk 0:02:58.4]} 2. Nf3 {[%clk 0:03:00.3]} 2...
e6 {[%clk 0:02:59.1]} 3. d4 {[%clk 0:03:01.7]} 3... cxd4 {[%clk 0:03:00.7]} 4.
Nxd4 {[%clk 0:03:03.4]} 4... a6 {[%clk 0:03:02.4]} 5. c4 {[%clk 0:03:03.8]} 5...
Nf6 {[%clk 0:03:03]} 6. Nc3 {[%clk 0:03:05.1]} 6... Bb4 {[%clk 0:03:04]} 7. Qd3
{[%clk 0:03:06.3]} 7... d5 {[%clk 0:02:59.4]} 8. exd5 {[%clk 0:03:06.1]} 8...
exd5 {[%clk 0:02:59.2]} 9. Be2 {[%clk 0:03:07.8]} 9... O-O {[%clk 0:02:59.4]}
10. O-O {[%clk 0:03:08.6]} 10... dxc4 {[%clk 0:02:45.3]} 11. Qxc4 {[%clk
0:03:08.8]} 11... Be7 {[%clk 0:02:45.8]} 12. Rd1 {[%clk 0:03:08]} 12... b5
{[%clk 0:02:39.1]} 13. Qb3 {[%clk 0:03:03.1]} 13... Qc7 {[%clk 0:02:37.3]} 14.
Be3 {[%clk 0:02:37.3]} 14... Nbd7 {[%clk 0:02:29.9]} 15. Nf5 {[%clk 0:02:32.7]}
15... Nc5 {[%clk 0:02:25.7]} 16. Nxe7+ {[%clk 0:02:32.9]} 16... Qxe7 {[%clk
0:02:27.1]} 17. Qb4 {[%clk 0:02:32.2]} 17... Nfd7 {[%clk 0:02:15]} 18. Nd5
{[%clk 0:02:32.8]} 18... Qd6 {[%clk 0:02:13]} 19. Rac1 {[%clk 0:02:34]} 19... a5
{[%clk 0:02:08.2]} 20. Bxc5 {[%clk 0:02:34.8]} 1-0

[Event "*** Monthly 3|2 Blitz Masters"]
[Site "Chess.com"]
[Date "2014.11.25"]
[Round "6"]
[White "minnesotachessmaster"]
[Black "Mvpag"]
[Result "0-1"]
[WhiteElo "1919"]
[BlackElo "1885"]
[TimeControl "180+2"]
[EndTime "12:06:17 PST"]
[Termination "Mvpag won by resignation"]

1. e4 {[%clk 0:02:57.1]} 1... e5 {[%clk 0:02:58.7]} 2. Nf3 {[%clk 0:02:57.4]}
2... Nc6 {[%clk 0:02:59.9]} 3. d4 {[%clk 0:02:58.6]} 3... exd4 {[%clk
0:03:00.8]} 4. Nxd4 {[%clk 0:02:59.8]} 4... d6 {[%clk 0:03:02.4]} 5. Bb5 {[%clk
0:02:59.9]} 5... Bd7 {[%clk 0:03:02.2]} 6. O-O {[%clk 0:03:00.7]} 6... Be7
{[%clk 0:03:00.7]} 7. Nc3 {[%clk 0:03:00.9]} 7... Nf6 {[%clk 0:03:01.3]} 8. Re1
{[%clk 0:02:58.3]} 8... Nxd4 {[%clk 0:02:54.4]} 9. Qxd4 {[%clk 0:02:57.1]} 9...
O-O {[%clk 0:02:51.7]} 10. Bc4 {[%clk 0:02:54.9]} 10... a6 {[%clk 0:02:49.2]}
11. Bg5 {[%clk 0:02:51.6]} 11... b5 {[%clk 0:02:46.3]} 12. Bb3 {[%clk
0:02:51.6]} 12... c5 {[%clk 0:02:46.4]} 13. Qd1 {[%clk 0:02:43.8]} 13... c4
{[%clk 0:02:47]} 14. Bxc4 {[%clk 0:02:38.4]} 14... bxc4 {[%clk 0:02:47.4]} 15.
Qd4 {[%clk 0:02:39.6]} 15... Be6 {[%clk 0:02:44.3]} 16. f4 {[%clk 0:02:39.7]}
16... Ng4 {[%clk 0:02:36.2]} 17. Bxe7 {[%clk 0:02:36.7]} 17... Qxe7 {[%clk
0:02:36.6]} 18. h3 {[%clk 0:02:37.9]} 18... Nf6 {[%clk 0:02:30.4]} 19. f5 {[%clk
0:02:35.5]} 19... Bd7 {[%clk 0:02:24.6]} 20. e5 {[%clk 0:02:36.4]} 20... dxe5
{[%clk 0:02:19.4]} 21. Rxe5 {[%clk 0:02:37.4]} 21... Qd8 {[%clk 0:02:16.9]} 22.
Qxc4 {[%clk 0:02:33.8]} 22... Qb6+ {[%clk 0:02:12.1]} 23. Kh1 {[%clk 0:02:33.9]}
23... Qxb2 {[%clk 0:02:12.3]} 24. Rb1 {[%clk 0:02:32]} 24... Qxc2 {[%clk
0:02:12.9]} 0-1

[Event "*** Monthly 3|2 Blitz Masters"]
[Site "Chess.com"]
[Date "2014.11.25"]
[Round "6"]
[White "thegormacle"]
[Black "pKiLz5Rn9b"]
[Result "1-0"]
[WhiteElo "2453"]
[BlackElo "2155"]
[TimeControl "180+2"]
[EndTime "12:09:00 PST"]
[Termination "thegormacle won by resignation"]

1. d4 {[%clk 0:02:56.7]} 1... Nf6 {[%clk 0:02:59.1]} 2. c4 {[%clk 0:02:58]} 2...
e6 {[%clk 0:03:00.7]} 3. Nf3 {[%clk 0:02:58.4]} 3... b6 {[%clk 0:03:01.7]} 4. a3
{[%clk 0:02:58.8]} 4... Bb7 {[%clk 0:03:02.2]} 5. Nc3 {[%clk 0:02:59.7]} 5... d5
{[%clk 0:03:03.5]} 6. cxd5 {[%clk 0:02:59.4]} 6... Nxd5 {[%clk 0:03:03.4]} 7.
Qc2 {[%clk 0:03:00]} 7... Nd7 {[%clk 0:03:01.3]} 8. Nxd5 {[%clk 0:02:52.7]} 8...
exd5 {[%clk 0:03:02]} 9. Bg5 {[%clk 0:02:53.6]} 9... Be7 {[%clk 0:02:52.7]} 10.
Bxe7 {[%clk 0:02:54.1]} 10... Qxe7 {[%clk 0:02:54.2]} 11. Qxc7 {[%clk
0:02:48.6]} 11... Ba6 {[%clk 0:02:54.8]} 12. e3 {[%clk 0:02:21.6]} 12... Bxf1
{[%clk 0:02:55.2]} 13. Kxf1 {[%clk 0:02:22.8]} 13... O-O {[%clk 0:02:50.2]} 14.
Ne5 {[%clk 0:02:23.2]} 14... Rad8 {[%clk 0:02:09]} 15. Nc6 {[%clk 0:02:23.5]}
15... Qe4 {[%clk 0:02:10]} 16. Nxd8 {[%clk 0:02:22.5]} 16... Qd3+ {[%clk
0:02:10.7]} 17. Kg1 {[%clk 0:02:23.3]} 17... Nf6 {[%clk 0:02:10.5]} 18. Nc6
{[%clk 0:02:03.7]} 18... Ne4 {[%clk 0:02:04.4]} 19. Ne7+ {[%clk 0:02:03.9]}
19... Kh8 {[%clk 0:02:05.3]} 20. Qf4 {[%clk 0:01:59.7]} 20... Qc2 {[%clk
0:01:27.9]} 21. h4 {[%clk 0:01:54.3]} 21... Qxb2 {[%clk 0:01:27.5]} 22. Kh2
{[%clk 0:01:54]} 22... Nxf2 {[%clk 0:01:28.5]} 23. Rhf1 {[%clk 0:01:47.6]} 23...
Ne4 {[%clk 0:01:23.9]} 24. Nxd5 {[%clk 0:01:47.6]} 24... Nd2 {[%clk 0:01:16.8]}
25. Rf2 {[%clk 0:01:27.3]} 25... Qxa1 {[%clk 0:01:15.1]} 26. Rxd2 {[%clk
0:01:28.4]} 26... Qxa3 {[%clk 0:01:16.2]} 27. Rc2 {[%clk 0:01:19.4]} 27... Qb3
{[%clk 0:01:04.6]} 28. Qxf7 {[%clk 0:01:15.3]} 28... Rg8 {[%clk 0:00:54.6]} 29.
Rf2 {[%clk 0:01:07.9]} 29... a5 {[%clk 0:00:54.1]} 30. Qxg8+ {[%clk 0:01:07.4]}
1-0